fUST/lending_fUST_20250603
["ID","MTS","AMOUNT","RATE_DAILY","PERIOD"]
[363840904,1748895043558,-447.44,0.00021092,2]
[363840906,1748895043569,-569.64,0.00021093,2]
[363840908,1748895043579,-1008.73,0.00021093,2]
[363840910,1748895043589,-500.0,0.00021095,3]
[363840912,1748895043599,-500.0,0.00021145,2]
[363840914,1748895043608,-12668.79298183,0.0002119,10]
[363840916,1748895043618,-52530.75154507,0.00021207,7]
[363840919,1748895043627,-842.5625,0.00021207,7]
[363840921,1748895043637,-329.15676855,0.0002121,4]
[363840923,1748895043647,-285.71082714,0.00021218,2]
[363840925,1748895043657,-176.41775351,0.00021218,2]
[363840927,1748895043667,-1248.46,0.00021294,2]
[363840929,1748895043678,-41860.26,0.000213,2]
[363840931,1748895043687,-1254.26,0.000213,2]
[363840933,1748895043697,-2340.49,0.000213,2]
[363840935,1748895043707,-175.581,0.00021323,2]
[363840937,1748895043717,-176.5287595,0.00021342,2]
[363840939,1748895043726,-158.5152029,0.00021342,2]
[363840941,1748895043736,-572.502888,0.00021342,2]
[363840943,1748895043746,-176.5287595,0.00021342,2]
[363840945,1748895043755,-158.5152029,0.00021342,2]
[363840947,1748895043765,-572.502888,0.00021342,2]
[363840949,1748895043774,-158.5152029,0.00021342,2]
[363840951,1748895043785,-176.5287595,0.00021342,2]
[363840953,1748895043796,-572.502888,0.00021342,2]
[363840955,1748895043806,-158.5152029,0.00021342,2]
[363840957,1748895043816,-572.502888,0.00021342,2]
[363840959,1748895043825,-355.9296932,0.00021342,2]
[363840961,1748895043836,-158.5152029,0.00021342,2]
[363840963,1748895043846,-572.502888,0.00021342,2]
[363840965,1748895043856,-158.5152029,0.00021342,2]
[363840967,1748895043865,-572.502888,0.00021342,2]
[363840969,1748895043875,-176.5287595,0.00021342,2]
[363840971,1748895043884,-317.0304058,0.00021342,2]
[363840973,1748895043893,-1145.005776,0.00021342,2]
[363840975,1748895043903,-158.5152029,0.00021342,2]
[363840977,1748895043912,-176.5287595,0.00021342,2]
[363840979,1748895043921,-919.3453116,0.00021342,2]
[363840981,1748895043934,-176.5287595,0.00021342,2]
[363840983,1748895043945,-176.5287595,0.00021342,2]
[363840985,1748895043955,-316.9382195,0.00021342,2]
[363840987,1748895043965,-153.0,0.00021342,2]
[363840990,1748895043976,-153.0,0.00021342,2]
[363840992,1748895043986,-332.81861725,0.00021365,2]
[363840993,1748895043995,-440.0,0.00021365,2]
[363840995,1748895044004,-440.0,0.00021366,2]
[363840997,1748895044014,-467.13,0.00021366,2]
[363840999,1748895044024,-447.44,0.00021366,2]
[363841002,1748895044033,-569.64,0.00021367,2]
[363841003,1748895044043,-1008.73,0.00021367,2]
[363841005,1748895044052,-1248.46,0.00021394,2]
[363841007,1748895044068,-4378.75,0.000214,2]
[363841010,1748895044079,-160.0,0.00021415,3]
[363841012,1748895044089,-329.15676855,0.00021417,5]
[363841014,1748895044099,-153.0,0.00021479,2]
[363841016,1748895044109,-153.0,0.00021479,2]
[363841018,1748895044119,-153.0,0.00021479,2]
[363841020,1748895044129,-153.0,0.00021479,2]
[363841022,1748895044141,-153.0,0.00021479,2]
[363841024,1748895044154,-153.0,0.00021479,2]
[363841026,1748895044170,-153.0,0.00021479,2]
[363841028,1748895044184,-153.0,0.00021479,2]
[363841030,1748895044194,-153.0,0.00021479,2]
[363841032,1748895044204,-1248.46,0.00021494,2]
[363841034,1748895044213,-215.0738,0.0002152,2]
[363841036,1748895044223,-157.326329,0.0002156,4]
[363841038,1748895044234,-1248.46,0.00021594,2]
[363841040,1748895044244,-329.15676855,0.00021624,5]
[363841042,1748895044254,-1000.0,0.00021628,2]
[363841044,1748895044264,-440.0,0.00021639,2]
[363841046,1748895044274,-180.88,0.0002164,2]
[363841048,1748895044284,-467.13,0.0002164,2]
[363841050,1748895044293,-447.44,0.0002164,2]
[363841052,1748895044303,-569.64,0.00021641,2]
[363841054,1748895044313,-1008.73,0.00021641,2]
[363841056,1748895044323,-500.0,0.00021643,4]
[363841058,1748895044334,-1248.46,0.00021694,2]
[363841060,1748895044343,-1941.10346573,0.000217,3]
[363841062,1748895044353,-8785.80297612,0.000217,2]
[363841064,1748895044363,-1248.46,0.00021794,2]
[363841066,1748895044373,-329.15676855,0.00021831,6]
[363841068,1748895044383,-1248.46,0.00021894,2]
[363841070,1748895044394,-440.0,0.00021913,2]
[363841072,1748895044406,-64681.66101273,0.00021914,2]
[363841074,1748895044416,-467.13,0.00021914,2]
[363841076,1748895044427,-447.44,0.00021914,2]
[363841078,1748895044438,-569.64,0.00021915,2]
[363841080,1748895044448,-1008.73,0.00021915,2]
[363841082,1748895044457,-200.0,0.00021917,2]
[363841084,1748895044467,-500.0,0.00021917,2]
[363841086,1748895044476,-500.0,0.00021917,2]
[363841088,1748895044486,-500.0,0.00021917,2]
[363841090,1748895044496,-581.58,0.00021917,2]
[363841092,1748895044505,-150.0,0.00021918,2]
[363841094,1748895044514,-250.0,0.00021945,2]
[363841096,1748895044524,-900.0,0.00021958,2]
[363841098,1748895044534,-235.86575027,0.00021963,2]
[363841100,1748895044544,-500.0,0.00021973,2]
[363841102,1748895044554,-70580.56,0.0002199,7]
[363841104,1748895044565,-151.0,0.0002199,7]
[363841106,1748895044575,-1248.46,0.00021994,7]
[363841108,1748895044585,-2208.93,0.00022,2]
[363841110,1748895044594,-76143.37168268,0.00022,2]
[363841112,1748895044603,-97593.71685147,0.00022,7]
[363841114,1748895044613,-151.0,0.00022,7]
[363841116,1748895044623,-151.548224,0.00022,7]
[363841118,1748895044633,-151.0,0.00022,7]
[363841120,1748895044643,-151.0,0.00022,7]
[363841122,1748895044652,-151.0,0.00022,7]
[363841124,1748895044662,-549.351504,0.00022,7]
[363841126,1748895044672,-549.351504,0.00022,7]
[363841128,1748895044682,-151.0,0.00022,7]
[363841130,1748895044692,-151.0,0.00022,7]
[363841132,1748895044702,-181.889428,0.00022,7]
[363841134,1748895044711,-181.889428,0.00022,7]
[363841136,1748895044720,-151.0,0.00022,7]
[363841138,1748895044730,-156.992507,0.00022,7]
[363841140,1748895044740,-156.992507,0.00022,7]
[363841142,1748895044750,-152.702403,0.00022,7]
[363841144,1748895044759,-173.592707,0.00022,7]
[363841146,1748895044769,-173.592707,0.00022,7]
[363841149,1748895044779,-1146.031164,0.00022,7]
[363841151,1748895044788,-1146.031164,0.00022,7]
[363841153,1748895044798,-151.91899,0.00022,7]
[363841155,1748895044807,-151.0,0.00022,7]
[363841157,1748895044817,-187.0,0.00022,2]
[363841159,1748895044826,-171.0,0.00022,2]
[363841161,1748895044835,-151.0,0.00022,7]
[363841163,1748895044845,-151.0,0.00022,7]
[363841165,1748895044855,-151.0,0.00022,7]
[363841167,1748895044864,-151.0,0.00022,7]
[363841169,1748895044874,-151.0,0.00022,7]
[363841171,1748895044883,-151.0,0.00022,7]
[363841173,1748895044892,-151.0,0.00022,7]
[363841175,1748895044901,-238.0,0.00022,2]
[363841177,1748895044911,-151.0,0.00022,7]
[363841179,1748895044921,-151.0,0.00022,7]
[363841181,1748895044932,-329.15676855,0.00022038,6]
[363841183,1748895044942,-1248.46,0.00022094,4]
[363841185,1748895044952,-1500.0,0.00022176,2]
[363841187,1748895044961,-440.0,0.00022187,2]
[363841189,1748895044971,-467.13,0.00022188,2]
[363841191,1748895044980,-447.44,0.00022188,2]
[363841193,1748895044989,-569.64,0.00022189,2]
[363841195,1748895044998,-1008.73,0.00022189,2]
[363841200,1748895045035,-200.0,0.00022191,30]
[363841202,1748895045044,-500.0,0.00022191,5]
[363841204,1748895045054,-238.0,0.00022192,7]
[363841206,1748895045063,-1248.46,0.00022194,5]
[363841208,1748895045072,-329.15676855,0.00022245,6]
[363841210,1748895045082,-405.0,0.00022258,2]
[363841212,1748895045092,-1248.46,0.00022294,7]
[363841213,1748895045101,-1051.823586,0.00022294,2]
[363841215,1748895045111,-1051.823586,0.00022294,2]
[363841217,1748895045120,-156.463588,0.00022294,7]
[363841219,1748895045130,-156.463588,0.00022294,7]
[363841221,1748895045139,-151.0,0.00022294,7]
[363841223,1748895045149,-1146.031164,0.00022294,7]
[363841225,1748895045158,-1146.031164,0.00022294,7]
[363841226,1748895045167,-151.0,0.00022294,7]
[363841228,1748895045178,-151.0,0.00022294,7]
[363841231,1748895045188,-41860.26,0.000223,2]
[363841233,1748895045197,-1254.26,0.000223,7]
[363841234,1748895045206,-2340.49,0.000223,7]
[363841236,1748895045217,-151.0,0.000223,7]
[363841238,1748895045227,-3742.59133857,0.00022301,2]
[363841240,1748895045236,-6808.99223782,0.0002232,7]
[363841242,1748895045246,-6808.99223782,0.0002232,7]
[363841244,1748895045256,-151.0,0.0002232,7]
[363841246,1748895045265,-157.326329,0.00022334,10]
[363841248,1748895045274,-157.326329,0.00022344,7]
[363841250,1748895045284,-1248.46,0.00022394,6]
[363841252,1748895045293,-4378.75,0.000224,2]
[363841254,1748895045303,-153.37416,0.000224,7]
[363841256,1748895045312,-151.808954,0.000224,7]
[363841258,1748895045322,-151.0,0.000224,7]
[363841260,1748895045332,-2563.78,0.00022439,2]
[363841262,1748895045341,-329.15676855,0.00022452,7]
[363841264,1748895045351,-427.7239083,0.00022461,2]
[363841266,1748895045360,-467.13,0.00022462,2]
[363841268,1748895045370,-447.44,0.00022462,2]
[363841270,1748895045380,-569.64,0.00022463,2]
[363841272,1748895045392,-1008.73,0.00022463,2]
[363841275,1748895045404,-203.57415183,0.00022465,30]
[363841277,1748895045414,-500.0,0.00022465,2]
[363841278,1748895045424,-1248.46,0.00022494,4]
[363841281,1748895045437,-151.0,0.000225,8]
[363841283,1748895045447,-151.0,0.000225,7]
[363841284,1748895045456,-151.0,0.000225,7]
[363841287,1748895045466,-151.0,0.000225,7]
[363841288,1748895045475,-151.0,0.000225,7]
[363841290,1748895045486,-151.0,0.000225,7]
[363841292,1748895045495,-151.0,0.000225,7]
[363841295,1748895045505,-151.0,0.000225,7]
[363841297,1748895045515,-151.0,0.00022521,7]
[363841299,1748895045524,-549.351504,0.00022521,7]
[363841301,1748895045534,-549.351504,0.00022521,7]
[363841302,1748895045544,-1248.46,0.00022594,6]
[363841303,1748895045554,-151.0,0.00022594,7]
[363841304,1748895045563,-181.654484,0.00022603,2]
[363841306,1748895045574,-151.0,0.00022603,7]
[363841307,1748895045585,-156.992507,0.00022603,7]
[363841308,1748895045594,-156.992507,0.00022603,7]
[363841309,1748895045604,-173.592707,0.00022603,7]
[363841310,1748895045614,-173.592707,0.00022603,7]
[363841311,1748895045623,-151.0,0.00022603,7]
[363841312,1748895045633,-159.45006171,0.00022658,2]
[363841313,1748895045643,-600.0,0.00022658,2]
[363841314,1748895045653,-151.0,0.00022658,7]
[363841315,1748895045663,-151.0,0.00022658,7]
[363841316,1748895045673,-329.15676855,0.00022659,7]
[363841317,1748895045684,-1248.46,0.00022694,5]
[363841318,1748895045694,-2000.0,0.00022724,2]
[363841319,1748895045703,-467.13,0.00022736,2]
[363841321,1748895045713,-447.44,0.00022736,2]
[363841322,1748895045723,-569.64,0.00022737,2]
[363841323,1748895045732,-1008.73,0.00022737,2]
[363841324,1748895045741,-500.0,0.00022739,6]
[363841325,1748895045750,-150.0,0.00022744,2]
[363841326,1748895045759,-150.0,0.00022744,2]
[363841327,1748895045768,-237.13056107,0.00022744,7]
[363841328,1748895045777,-278.777961,0.00022744,7]
[363841329,1748895045787,-181.889428,0.00022744,7]
[363841330,1748895045796,-181.889428,0.00022744,7]
[363841331,1748895045805,-1400.0,0.0002278,2]
[363841332,1748895045814,-1248.46,0.00022794,6]
[363841333,1748895045824,-151.0,0.000228,8]
[363841334,1748895045833,-157.326329,0.00022834,3]
[363841335,1748895045842,-329.15676855,0.00022866,8]
[363841336,1748895045851,-223.0315306,0.00022889,2]
[363841337,1748895045861,-1248.46,0.00022894,3]
[363841338,1748895045870,-600.0,0.00022894,2]
[363841339,1748895045879,-176.545,0.00022914,2]
[363841340,1748895045890,-962.0,0.00022914,2]
[363841341,1748895045899,-2226.0,0.00022914,2]
[363841342,1748895045909,-708.0,0.00022914,2]
[363841343,1748895045918,-1248.46,0.00022994,6]
[363841344,1748895045927,-202.00953869,0.00023,2]
[363841345,1748895045938,-467.13,0.0002301,2]
[363841346,1748895045947,-447.57,0.0002301,2]
[363841347,1748895045957,-569.6657,0.00023011,2]
[363841348,1748895045967,-1008.91148638,0.00023011,2]
[363841349,1748895045977,-500.0,0.00023013,2]
[363841350,1748895045986,-238.0,0.00023014,7]
[363841351,1748895045995,-1018.204994,0.00023017,3]
[363841352,1748895046005,-900.0,0.00023054,2]
[363841353,1748895046014,-329.15676855,0.00023072,8]
[363841354,1748895046024,-1248.46,0.00023094,4]
[363841355,1748895046033,-1248.46,0.00023194,3]
[363841356,1748895046042,-391.0,0.000232,2]
[363841357,1748895046052,-235.86575027,0.000232,2]
[363841358,1748895046061,-2200.0,0.00023271,2]
[363841359,1748895046071,-500.0,0.00023272,2]
[363841360,1748895046080,-329.15676855,0.00023279,8]
[363841361,1748895046090,-210.79572876,0.00023287,7]
[363841362,1748895046100,-1248.46,0.00023294,6]
[363841363,1748895046109,-223653.57183531,0.000233,3]
[363841955,1748895226385,425.745645,0.00013699,2]
[363842441,1748895690911,1160.75,0.000219,60]
[363842442,1748895906754,200.0,0.00024649,120]
[363842449,1748895939124,-344.90065667,0.00016704,2]
[363842483,1748896070401,170.39502951,0.000246,120]
[363842504,1748896117937,1289.26260045,0.00024,120]
[363842516,1748896122833,736.88251345,0.00024657,120]
[363842517,1748896123331,217.61044454,0.0001536,120]
[363842524,1748896156170,-216.47961903,0.00016605,2]
[363842525,1748896156192,-411.25829682,0.00016608,2]
[363842526,1748896156214,-300.0,0.00016704,2]
[363842527,1748896156235,-440.0,0.00016704,2]
[363842528,1748896156257,-420.0,0.00016704,2]
[363842529,1748896156279,-440.0,0.00016704,2]
[363842530,1748896156299,-430.0,0.00016704,2]
[363842531,1748896156323,-440.0,0.00016704,2]
[363842532,1748896156345,-425.63192416,0.00016704,2]
[363842533,1748896156366,-430.0,0.00016705,2]
[363842534,1748896156391,-430.0,0.00016705,2]
[363842535,1748896156411,-440.0,0.00016705,2]
[363842536,1748896156431,-430.0,0.00016705,2]
[363842537,1748896156451,-440.0,0.00016705,2]
[363842538,1748896156471,-300.0,0.00016705,2]
[363842539,1748896156492,-440.0,0.00016705,2]
[363842540,1748896156512,-440.0,0.00016705,2]
[363842541,1748896156533,-440.0,0.00016705,2]
[363842542,1748896156554,-440.0,0.00016705,2]
[363842543,1748896156575,-420.0,0.00016705,2]
[363842544,1748896156595,-440.0,0.00016705,2]
[363842545,1748896156616,-440.0,0.00016705,2]
[363842546,1748896156638,-451.47711959,0.00016705,2]
[363842547,1748896156659,-440.0,0.00016705,2]
[363842548,1748896156681,-430.0,0.00016705,2]
[363842549,1748896156702,-440.0,0.00016705,2]
[363842550,1748896156723,-430.0,0.00016705,2]
[363842551,1748896156744,-440.0,0.00016705,2]
[363842552,1748896156765,-430.0,0.00016705,2]
[363842553,1748896156790,-440.0,0.00016705,2]
[363842554,1748896156811,-440.0,0.00016705,2]
[363842555,1748896156833,-440.0,0.00016705,2]
[363842556,1748896156854,-293.60200797,0.00016705,2]
[363842557,1748896156876,-347.02631203,0.00016705,2]
[363842558,1748896156898,-440.0,0.00016705,2]
[363842559,1748896156918,-450.0,0.00016705,2]
[363842560,1748896156939,-440.0,0.00016705,2]
[363842561,1748896156960,-440.0,0.00016705,2]
[363842562,1748896156981,-440.0,0.00016705,2]
[363842563,1748896157002,-440.0,0.00016705,2]
[363842564,1748896157023,-487.11767686,0.00016705,2]
[363842565,1748896157044,-440.0,0.00016705,2]
[363842566,1748896157065,-450.0,0.00016705,2]
[363842567,1748896157086,-440.0,0.00016705,2]
[363842568,1748896157108,-430.0,0.00016705,2]
[363842569,1748896157130,-244.95085106,0.00016705,2]
[363842592,1748896232290,-430.0,0.00016704,2]
[363842593,1748896232300,-440.0,0.00016704,2]
[363842594,1748896232309,-440.0,0.00016704,2]
[363842595,1748896232317,-430.0,0.00016704,2]
[363842596,1748896232327,-440.0,0.00016704,2]
[363842597,1748896232336,-440.0,0.00016704,2]
[363842598,1748896232347,-151.02360114,0.00016704,2]
[363842599,1748896232356,-484.45,0.00016704,2]
[363842600,1748896232366,-431.64006525,0.00016704,2]
[363842601,1748896232386,-440.0,0.00016704,2]
[363842602,1748896232397,-440.0,0.00016704,2]
[363842603,1748896232407,-440.0,0.00016705,2]
[363842604,1748896232417,-440.0,0.00016705,2]
[363842605,1748896232426,-440.0,0.00016705,2]
[363842606,1748896232436,-400.0,0.00016705,2]
[363842607,1748896232447,-440.0,0.00016705,2]
[363842608,1748896232458,-440.0,0.00016705,2]
[363842609,1748896232468,-430.0,0.00016705,2]
[363842610,1748896232478,-470.0,0.00016705,2]
[363842611,1748896232487,-440.0,0.00016705,2]
[363842612,1748896232498,-440.0,0.00016705,2]
[363842613,1748896232509,-440.0,0.00016705,2]
[363842614,1748896232519,-440.0,0.00016705,2]
[363842615,1748896232529,-440.0,0.00016705,2]
[363842616,1748896232539,-440.0,0.00016705,2]
[363842617,1748896232549,-440.0,0.00016705,2]
[363842618,1748896232559,-440.0,0.00016705,2]
[363842619,1748896232569,-470.0,0.00016705,2]
[363842620,1748896232579,-440.0,0.00016705,2]
[363842621,1748896232589,-190.83733707,0.00016705,2]
[363842622,1748896232599,-430.54577439,0.00016705,2]
[363842623,1748896232609,-500.0,0.00016705,2]
[363842624,1748896232620,-457.62420644,0.00016705,2]
[363842625,1748896232629,-440.0,0.00016705,2]
[363842626,1748896232639,-440.0,0.00016705,2]
[363842627,1748896232649,-440.0,0.00016705,2]
[363842628,1748896232660,-440.0,0.00016705,2]
[363842629,1748896232670,-440.0,0.00016705,2]
[363842630,1748896232680,-504.9101466,0.00016705,2]
[363842631,1748896232690,-440.0,0.00016705,2]
[363842632,1748896232700,-440.0,0.00016705,2]
[363842633,1748896232710,-440.0,0.00016705,2]
[363842634,1748896232720,-440.0,0.00016705,2]
[363842635,1748896232730,-440.0,0.00016705,2]
[363842636,1748896232742,-440.0,0.00016705,2]
[363842637,1748896232752,-440.0,0.00016705,2]
[363842638,1748896232762,-430.0,0.00016705,2]
[363842639,1748896232772,-440.0,0.00016705,2]
[363842640,1748896232782,-440.0,0.00016705,2]
[363842641,1748896232793,-440.0,0.00016705,2]
[363842642,1748896232805,-440.0,0.00016705,2]
[363842643,1748896232815,-440.0,0.00016705,2]
[363842644,1748896232825,-440.0,0.00016705,2]
[363842645,1748896232835,-440.0,0.00016705,2]
[363842646,1748896232845,-430.0,0.00016705,2]
[363842647,1748896232855,-440.0,0.00016705,2]
[363842648,1748896232865,-440.0,0.00016705,2]
[363842649,1748896232876,-430.0,0.00016705,2]
[363842650,1748896232886,-440.0,0.00016705,2]
[363842651,1748896232896,-430.0,0.00016705,2]
[363842652,1748896232906,-578.32559906,0.00016705,2]
[363842653,1748896232915,-451.54747245,0.00016705,2]
[363842654,1748896232925,-430.0,0.00016705,2]
[363842655,1748896232935,-152.14524398,0.00016705,2]
[363842656,1748896232945,-415.69184283,0.00016705,2]
[363842657,1748896232956,-440.0,0.00016705,2]
[363842658,1748896232965,-440.0,0.00016705,2]
[363842659,1748896232975,-544.93140379,0.00016705,2]
[363842660,1748896232986,-430.0,0.00016705,2]
[363842661,1748896232999,-430.0,0.00016705,2]
[363842662,1748896233008,-440.0,0.00016705,2]
[363842663,1748896233018,-440.0,0.00016705,2]
[363842664,1748896233028,-440.0,0.00016705,2]
[363842665,1748896233038,-440.0,0.00016705,2]
[363842666,1748896233047,-440.0,0.00016705,2]
[363842667,1748896233058,-440.0,0.00016705,2]
[363842668,1748896233069,-440.0,0.00016705,2]
[363842669,1748896233080,-440.0,0.00016705,2]
[363842670,1748896233091,-302.19687374,0.00016705,2]
[363842671,1748896233101,-440.0,0.00016705,2]
[363842672,1748896233111,-440.0,0.00016705,2]
[363842673,1748896233122,-440.0,0.00016705,2]
[363842674,1748896233132,-440.0,0.00016705,2]
[363842675,1748896233142,-440.0,0.00016705,2]
[363842676,1748896233152,-440.0,0.00016705,2]
[363842677,1748896233163,-430.0,0.00016705,2]
[363842678,1748896233173,-440.0,0.00016705,2]
[363842679,1748896233183,-440.0,0.00016705,2]
[363842680,1748896233192,-430.0,0.00016705,2]
[363842681,1748896233205,-430.0,0.00016705,2]
[363842682,1748896233215,-440.0,0.00016705,2]
[363842683,1748896233226,-451.07285752,0.00016705,2]
[363842684,1748896233236,-450.85847809,0.00016705,2]
[363842685,1748896233247,-440.0,0.00016705,2]
[363842686,1748896233257,-430.0,0.00016705,2]
[363842687,1748896233267,-420.0,0.00016705,2]
[363842688,1748896233277,-440.0,0.00016705,2]
[363842689,1748896233287,-440.0,0.00016705,2]
[363842690,1748896233297,-430.0,0.00016705,2]
[363842691,1748896233307,-420.0,0.00016705,2]
[363842692,1748896233317,-430.0,0.00016705,2]
[363842693,1748896233327,-260.73047115,0.00016705,2]
[363842694,1748896233337,-440.0,0.00016705,2]
[363842695,1748896233347,-440.0,0.00016705,2]
[363842696,1748896233357,-395.50014071,0.00016705,2]
[363842697,1748896233367,-430.0,0.00016705,2]
[363842698,1748896233378,-430.0,0.00016705,2]
[363842699,1748896233388,-430.0,0.00016705,2]
[363842700,1748896233398,-430.0,0.00016705,2]
[363842701,1748896233408,-450.0,0.00016705,2]
[363842702,1748896233418,-440.0,0.00016705,2]
[363842703,1748896233428,-440.0,0.00016705,2]
[363842704,1748896233437,-430.0,0.00016705,2]
[363842705,1748896233449,-430.0,0.00016705,2]
[363842706,1748896233463,-500.0,0.00016705,2]
[363842707,1748896233473,-500.0,0.00016705,2]
[363842708,1748896233483,-500.0,0.00016705,2]
[363842709,1748896233494,-500.0,0.00016705,2]
[363842710,1748896233504,-500.0,0.00016705,2]
[363842711,1748896233514,-500.0,0.00016705,2]
[363842712,1748896233525,-500.0,0.00016705,2]
[363842713,1748896233535,-629.21479217,0.00016705,2]
[363842714,1748896233546,-440.0,0.00016705,2]
[363842715,1748896233556,-430.0,0.00016705,2]
[363842716,1748896233566,-430.48011042,0.00016705,2]
[363842717,1748896233576,-430.0,0.00016706,2]
[363842718,1748896233586,-440.0,0.00016706,2]
[363842719,1748896233795,-440.0,0.00016706,2]
[363842720,1748896233808,-454.64700913,0.00016706,2]
[363842721,1748896233818,-451.13242223,0.00016706,2]
[363842722,1748896233826,-330.20983045,0.00016706,2]
[363842723,1748896233835,-401.47543091,0.00016706,2]
[363842724,1748896233847,-450.0,0.00016706,2]
[363842725,1748896233856,-430.0,0.00016706,2]
[363842726,1748896233865,-1012.03950601,0.00016706,2]
[363842727,1748896233876,-453.59156751,0.00016706,2]
[363842728,1748896233886,-430.0,0.00016706,2]
[363842729,1748896233895,-450.0,0.00016706,2]
[363842730,1748896233906,-213.97223498,0.00016706,2]
[363842731,1748896233916,-450.0,0.00016706,2]
[363842732,1748896233925,-454.16718036,0.00016706,2]
[363842733,1748896233936,-450.0,0.00016706,2]
[363842734,1748896233945,-456.74614325,0.00016706,2]
[363842735,1748896233954,-453.53202309,0.00016706,2]
[363842736,1748896233964,-430.0,0.00016706,2]
[363842737,1748896233973,-440.0,0.00016706,2]
[363842738,1748896233983,-450.0,0.00016706,2]
[363842739,1748896233992,-453.74075566,0.00016706,2]
[363842740,1748896234001,-455.1735352,0.00016706,2]
[363842741,1748896234011,-440.0,0.00016706,2]
[363842742,1748896234021,-450.94813519,0.00016706,2]
[363842743,1748896234031,-430.0,0.00016706,2]
[363842744,1748896234040,-310.62575827,0.00016706,2]
[363842745,1748896234050,-453.27004697,0.00016706,2]
[363842746,1748896234060,-430.0,0.00016706,2]
[363842747,1748896234070,-430.0,0.00016706,2]
[363842748,1748896234080,-440.0,0.00016706,2]
[363842749,1748896234091,-450.0,0.00016706,2]
[363842750,1748896234100,-440.0,0.00016706,2]
[363842751,1748896234110,-430.0,0.00016706,2]
[363842752,1748896234120,-405.65070021,0.00016706,2]
[363842753,1748896234131,-450.0,0.00016706,2]
[363842754,1748896234142,-450.0,0.00016706,2]
[363842755,1748896234153,-169.65463713,0.00016706,2]
[363842756,1748896234163,-451.18979577,0.00016706,2]
[363842757,1748896234174,-440.0,0.00016706,2]
[363842758,1748896234185,-459.09384521,0.00016706,2]
[363842759,1748896234195,-454.05334703,0.00016706,2]
[363842760,1748896234211,-430.0,0.00016706,2]
[363842761,1748896234221,-450.91639734,0.00016706,2]
[363842762,1748896234232,-450.0,0.00016706,2]
[363842763,1748896234243,-451.24091502,0.00016706,2]
[363842764,1748896234255,-450.0,0.00016706,2]
[363842765,1748896234266,-440.0,0.00016706,2]
[363842766,1748896234276,-450.0,0.00016706,2]
[363842767,1748896234286,-430.0,0.00016706,2]
[363842768,1748896234307,-450.0,0.00016706,2]
[363842769,1748896234318,-400.0,0.00016706,2]
[363842770,1748896234329,-450.0,0.00016706,2]
[363842771,1748896234341,-440.0,0.00016706,2]
[363842772,1748896234351,-430.0,0.00016706,2]
[363842773,1748896234361,-450.0,0.00016706,2]
[363842774,1748896234371,-450.0,0.00016706,2]
[363842775,1748896234382,-450.0,0.00016706,2]
[363842776,1748896234392,-450.0,0.00016706,2]
[363842777,1748896234402,-430.0,0.00016706,2]
[363842778,1748896234412,-247.00144133,0.00016706,2]
[363842779,1748896234422,-430.0,0.00016706,2]
[363842780,1748896234432,-440.0,0.00016706,2]